Cogmind - Beta 9.2 @@@ ROGUE MODE // 2019.12.13 @ 12:18:12 Player: SHADOWELITE7 Result: Destroyed by G-34 Mercenary with Small Laser Performance ------------- Evolutions (0) 0 Regions Visited (1) 200 Robots Destroyed (17) 85 Value Destroyed (467) 467 Prototype IDs (0) 0 Alien Tech Used (0) 0 Bonus (0) 0 TOTAL SCORE: 752 Bonus ------- None Cogmind --------- Core Integrity 0/250 Matter 179/300 Energy 100/100 System Corruption 0% Temperature Cool (6) Movement Core (550) Ox10 Location -10/Materials Parts ------- > --- POWER (1) -------- (None) > --- PROPULSION (2) --- (None) > --- UTILITY (2) ------ Large Storage Unit Large Storage Unit > --- WEAPON (2) ------- (None) > --- INVENTORY (16) --- Light Ion Engine Medium Laser Assault Rifle Peak State ------------ > --- POWER ------------ Ion Engine > --- PROPULSION ------- Light Treads Light Treads > --- UTILITY ---------- Large Storage Unit Large Storage Unit > --- WEAPON ----------- Assault Rifle Assault Rifle > --- INVENTORY -------- Light Ion Engine Medium Laser [Rating: 7] Favorites ----------- Power Ion Engine Engine Ion Engine Propulsion Light Treads Treads Light Treads Utility Large Storage Unit Storage Large Storage Unit Weapon Assault Rifle Energy Gun Medium Laser Ballistic Gun Assault Rifle Launcher Grenade Launcher Build | -11 -10 ------- Run | Scr Mat Slots Evolved . | . . Power . | . . Propulsion . | . . Utility . | . . Weapon . | . . Parts Attached 10 | 7 3 Power 1 | 1 . Engine 1 | 1 . Core . | . . Reactor . | . . Propulsion 2 | 2 . Treads 2 | 2 . Leg . | . . Wheel . | . . Hover . | . . Flight . | . . Utility 3 | 1 2 Device . | . . Storage 3 | 1 2 Processor . | . . Hackware . | . . Protection . | . . Artifact . | . . Weapon 4 | 3 1 Energy Gun 1 | 1 . Energy Cannon . | . . Ballistic Gun 2 | 2 . Ballistic Cannon . | . . Launcher 1 | . 1 Special Weapon . | . . Impact Weapon . | . . Slashing Weapon . | . . Piercing Weapon . | . . Special Melee Weapon . | . . Unidentified Prototypes . | . . Parts Lost 5 | . 5 Power 1 | . 1 Propulsion 2 | . 2 Utility . | . . Weapon 2 | . 2 Highest Loss Streak 3 | . 3 Average Slot Usage (%) 71 | . 71 Engine 7 | . 7 Treads 15 | . 15 Storage 26 | . 26 Ballistic Gun 16 | . 16 Launcher 4 | . 4 Naked Turns . | . . Heaviest Build 42 | 13 42 Greatest Support 40 | 40 40 Greatest Overweight (x) 12 | . 12 Average Overweight (x) . | . 1 Largest Inventory Capacity 16 | 6 16 Average Capacity 12 | 5 14 Most Carried 4 | 3 4 Average Carried 2 | 1 2 Final Capacity 16 | 6 16 Final Carried 3 | 2 3 Class Distribution -------------------- 100% | Mutant Dominant Class ---------------- Mutant | -10/Materials Resources | -11 -10 ----------- Run | Scr Mat Matter Collected 383 | 224 159 Remotely . | . . Salvage Created 437 | . 437 Parts 33 | . 33 Haulers Intercepted . | . . Recyclers Shooed 1 | . 1 Parts Field Recycled . | . . Retrieved Matter . | . . Parts Self-Destructed . | . . Prevented . | . . Kills | -11 -10 ------- Run | Scr Mat Combat Hostiles Destroyed 10 | . 10 Guns 5 | . 5 AOE 5 | . 5 Classes Destroyed 3 | . 3 Builder 4 | . 4 Operator 3 | . 3 Grunt 10 | . 10 Best Kill Streak 13 | . 13 Combat Bots Only 8 | . 8 Max Kills in Single Turn 3 | . 3 Gunslinging . | . . Exploded 2 | . 2 Melee . | . . Uniques/NPCs Destroyed . | . . Combat | -11 -10 -------- Run | Scr Mat Damage Taken 962 | . 962 Core 254 | . 254 Absorbed by Shields . | . . Core Remaining (%) 100 | 100 . Volleys Fired 31 | . 31 Largest 2 | . 2 Hottest 50 | . 50 Shots Fired 53 | . 53 Gun 43 | . 43 Cannon . | . . Launcher 10 | . 10 Special . | . . Kinetic 43 | . 43 Thermal . | . . Explosive 10 | . 10 Electromagnetic . | . . Robot Hit Streak 6 | . 6 Robot Miss Streak 3 | . 3 Penetration Max . | . . Secondary Targets 2 | . 2 Max Gunslinging Chain 1 | . 1 Shots Hit Robots 32 | . 32 Core Hits 35 | . 35 Critical Hits . | . . Critical Kills . | . . Critical Parts Destroyed . | . . Melee Attacks . | . . Impact . | . . Slashing . | . . Piercing . | . . Sneak Attacks . | . . Combat Hostiles . | . . Follow-up Attacks . | . . Damage Inflicted 915 | . 915 Guns 368 | . 368 Cannons . | . . Explosions 547 | . 547 Melee . | . . Ramming . | . . Kinetic 368 | . 368 Thermal . | . . Explosive 547 | . 547 Electromagnetic . | . . Impact . | . . Slashing . | . . Piercing . | . . Highest Corruption . | . . Average Corruption . | . . Corruption Purged . | . . Overload Shots . | . . Overflow Damage 54 | . 54 Projectiles . | . . Explosions 54 | . 54 Melee . | . . Knockbacks . | . . Impact . | . . Kinetic . | . . Secondary . | . . Self-Inflicted Damage 137 | . 137 Shots 4 | . 4 Rammed . | . . Targets Rammed . | . . Kicked . | . . Crushed . | . . Highest Temperature 16 | . 16 Average Temperature 4 | . 4 Received Heat Transfer 471 | . 471 Siege Activations . | . . Robots Corrupted . | . . Combat Hostiles . | . . Parts Fried . | . . Impact Corruptions . | . . Robots Melted . | . . Combat Hostiles . | . . Parts Melted . | . . Heat Transferred . | . . Parts Sabotaged . | . . Parts Stolen . | . . Parts Stripped . | . . Power Chain Reactions . | . . Missiles Intercepted . | . . Alert | -11 -10 ------- Run | Scr Mat Peak Influence 315 | . 315 Average Influence 113 | . 154 Maximum Alert Level 1 | . 1 Low Security (%) 66 | 100 54 Level 1 33 | . 45 Level 2 . | . . Level 3 . | . . Level 4 . | . . Level 5 . | . . High Security . | . . Max Security . | . . Squads Dispatched 4 | . 4 Investigation . | . . Extermination . | . . Reinforcement 4 | . 4 Assault . | . . Garrison . | . . Intercept . | . . Construction Impeded . | . . Haulers Reinforced . | . . Stealth | -11 -10 --------- Run | Scr Mat Distress Signals 3 | . 3 Communications Jammed . | . . Distress Signals . | . . Times Spotted 24 | . 24 Peak Tracking Total 6 | . 6 Tactical Retreats . | . . Traps | -11 -10 ------- Run | Scr Mat Traps Triggered . | . . Indirectly . | . . Trap Hack Attempts . | . . Triggered . | . . Disarmed . | . . Reprogrammed . | . . Reused . | . . Traps Extracted . | . . Installed . | . . Triggered . | . . Machines | -11 -10 ---------- Run | Scr Mat Machines Disabled 2 | . 2 Max in Single Turn 1 | . 1 Machines Sabotaged . | . . Garrisons Compromised . | . . Overloaded Fab Kills . | . . Fab Network Shutdowns . | . . Hacking | -11 -10 --------- Run | Scr Mat Machines Accessed . | . . Terminals . | . . Fabricators . | . . Repair Stations . | . . Recycling Units . | . . Scanalyzers . | . . Garrison Access . | . . Total Hacks . | . . Successful . | . . Failed . | . . Catastrophic . | . . Database Lockouts . | . . Manual . | . . Terminals . | . . Fabricators . | . . Repair Stations . | . . Recycling Units . | . . Scanalyzers . | . . Garrison Access . | . . Terminal Hacks . | . . Fabricator Hacks . | . . Repair Station Hacks . | . . Recycling Unit Hacks . | . . Scanalyzer . | . . Garrison Access Hacks . | . . Unauthorized Hacks . | . . Terminals . | . . Fabricators . | . . Repair Stations . | . . Recycling Units . | . . Scanalyzers . | . . Garrison Access . | . . Data Cores Recovered . | . . Used . | . . Hacking Detections . | . . Full Trace Events . | . . Feedback Events . | . . Feedback Blocked . | . . Robot Schematics Acquired . | . . Robots Built . | . . Matter . | . . Time . | . . Total Robot Build Rating . | . . Part Schematics Acquired . | . . Parts Built . | . . Matter . | . . Time . | . . Total Part Build Rating . | . . Parts Repaired . | . . Time . | . . Parts Recycled . | . . Recycled Matter . | . . Retrieved Matter . | . . Retrieved Components . | . . Parts Scanalyzed . | . . Part Schematics Acquired . | . . Parts Damaged . | . . Bothacking | -11 -10 ------------ Run | Scr Mat Used RIF Installer . | . . Robots Hacked . | . . Non-combat . | . . Combat . | . . Robot Hacks Applied . | . . Relay Couplers Released . | . . Robots Rewired . | . . Allies Hacked . | . . Hacks Repelled . | . . Allies | -11 -10 -------- Run | Scr Mat Total Allies . | . . Largest Group . | . . Highest-Rated Group . | . . Highest-Rated Ally . | . . Total Orders . | . . Ally Attacks . | . . Total Damage . | . . Kills . | . . Allies Corrupted . | . . Allies Melted . | . . Intel | -11 -10 ------- Run | Scr Mat Robot Analysis Total . | . . Derelict Logs Recovered . | . . Drone Launches . | . . Drone Recoveries . | . . Exploration | -11 -10 ------------- Run | Scr Mat Turns Passed 434 | 114 320 Spaces Moved 126 | 54 72 Core 9 | 5 4 Treads 117 | 49 68 Legs . | . . Wheels . | . . Hover . | . . Flight . | . . Fastest Speed 50 | 50 160 Average Speed 178 | 149 200 Slowest Speed 650 | 160 650 Overloaded Moves . | . . Propulsion Burnouts . | . . Robots Hopped . | . . Cave-ins Triggered . | . . Exploration Rate (%) 11 | 3 19 Regions Visited 1 Branch Regions . Pre-discovered Areas . | . . Known Exits Taken . | . . Unknown Exits Taken 1 | 1 . Scrap Searched . | . . Spaces Dug . | . . Terrain Destroyed 60 | . 60 Melee . | . . Projectile . | . . AOE 60 | . 60 Actions | -11 -10 --------- Run | Scr Mat Total 283 | 88 195 Wait 103 | 19 84 Move 125 | 53 72 Hop . | . . Pick Up 11 | 8 3 Fast Attach . | . . Attach 10 | 7 3 Detach 2 | 1 1 Swap . | . . Drop 1 | . 1 Fire 31 | . 31 Melee . | . . Ram . | . . Kick . | . . Crush . | . . Escape Stasis . | . . Rewire . | . . Trap . | . . Miscellaneous . | . . Route ------- -11/Scrapyard -10/Materials History --------- Turn | Location | Event 10 | -11/Scrapyard | Discovered new exit (range 15) 115 | -11/Scrapyard | Entered Materials 306 | -10/Materials | Build established: Mutant 327 | -10/Materials | Lost 3 parts (1p2n) 337 | -10/Materials | Destroyed 8 combat bots 379 | -10/Materials | Core integrity fell below 50% 420 | -10/Materials | Core integrity fell below 20% 435 | -10/Materials | Destroyed by G-34 Mercenary with Small Laser Last Messages --------------- 00391_ Recycling unit begins recycling process. 00391_ U-05 Engineer builds a Wall. 00392_ K-01 Serf collects debris. 00393_ R-06 Scavenger inserts Imp. Heat Sink into recycling unit. 00395_ K-01 Serf collects debris. 00396_ R-06 Scavenger inserts Particle Gun into recycling unit. 00396_ U-05 Engineer builds a Wall. 00397_ Recycling unit begins recycling process. 00399_ R-06 Scavenger inserts Aluminum Leg into recycling unit. 00399_ K-01 Serf collects debris. 00403_ R-06 Scavenger collects Lgt. Ion Engine. 00405_ K-01 Serf collects debris. 00406_ U-05 Engineer builds a Wall. 00408_ K-01 Serf collects debris. 00409_ The unstable cave ceiling collapses. 00414_ K-01 Serf collects debris. 00419_ The unstable cave ceiling collapses. 00428_ U-05 Engineer builds a Wall. 00434_ U-05 Engineer lays Concrete. 00434_ R-06 Scavenger collects Wheel. Map ----- +----------------------------------------------------+ | ?????????????????????????????????????????????????? | | ?????????????????????????????????????????????????? | | ?????????????????????????????????????????????????? | | ?????????????????????????????????????????????????? | | ?????????????????????????????????????????????????? | | ?????????????????????????????????????????????????? | | ?????????????????????????????????????????????????? | | ?????????????????????????????????????????????????? | | ?????????????????????????????????????????????????? | | ?????????????????????????????????????????????????? | | ?????????????????????????????????????????????????? | | ?????????????????????????????????????????????????? | | ?????????????????????????????????????????????????? | | ?????????????????????????????????????????????????? | | ???????????????#??????????????????? #???????????? | | ???????????????? ?????????????????? +???????????? | | ???????????????##+????????????????? #???????????? | | ??????????????? ???######?????? #???????????? | | ????????????+ ] ??# #?????? #???????????? | | ????????????# ?#=a #?????? #???????????? | | ????????????# # ####### #???????????? | | ????????????# [[[ "" # + ? #???????????? | | ????????????# [[ u"#### = #???????????? | | ????????????# [[ # ### %=%#???????????? | | ????????????# % r =* ## =!#???????????? | | ?????????????????# g@ # #???????????? | | ?????????????????## ###########| #???????????? | | ???????????? *= #???######??? | | ??????????????## ## # #### % #??##! !##?? | | ?????????????????# # #??#! !#?? | | ???????????????? # # ## # [ #??#! !#?? | | ??????????????# ?# ##![! # #??# ##?? | | ??????????????#?? ?#![! # #### #??? | | ???????????????? #?#[!! # #??? | | ??????????????? # % ??# # #??? | | ??????????????# ## "??# + #??? | | ??????????????# ??# Y??# "########+## #??? | | ???????????????????#= ???# T## ## ##??? | | ???????????????????# ????# "## """ ## #???? | | ?????????????????????????# ??# """ ## #???? | | ?????????????????????????####??# """ ## #???? | | ???????????????????????????????# ## #???? | | ???????????????????????????????# " """ ## #???? | | ???????????????????????????????# T """ ## #???? | | ???????????????????????????????# " """ ## #???? | | ???????????????????????????????# ## #???? | | ????????????????????????????????########## #???? | | ?????????????????????????????????????????#####???? | | ?????????????????????????????????????????????????? | | ?????????????????????????????????????????????????? | +----------------------------------------------------+ Best States ------------- Heat Dissipation 25 Energy Generation 10 Energy Capacity 250 Matter Stores 254 Matter Capacity 300 Sight Range 16 Terrain Scan Density 10 Evasion (%) 40 Recoil Reduction 2 Item Schematics ----------------- None Robot Schematics ------------------ None Fabricated ------------ Nothing Alien Tech Used ----------------- None Achievements -------------- None Challenges ------------ None Game ------ Seed PulseCloakingLauncher Manual? 0 Play Time 00:06:17 Cumulative 16.0 hours Start 2019.12.13 @ 11:44:03 End 2019.12.13 @ 12:18:12 Sessions 3 Manual Loads 0 Difficulty Rogue Special Mode None Game No. 68 Rogue 64 Adventurer 0 Explorer 4 Win Type - Total 0 Types 0/0/0/0/0/0/0 Lore% 20 Gallery% 16 Achievement% 16 Wizard Run 0 Options --------- ASCII 0 Keyboard 0 Movement Mouse Keybinds 0 Fullscreen 1 Font 18/SmallcapsGlow Map View 76x50 Tactical HUD 1 Map Filters NONE Filters NONE Steam 1 RUN: 52cd21e5-2deb-46cc-9289-eaf677f2cb54